Cogmind - Beta 13 @@@ ROGUE MODE // 2024.05.12 @ 14:17:08 Player: AkimboAoki Result: Destroyed by D-53 Grenadier with Mini Grenade Launcher Performance ------------- Evolutions (0) 0 Regions Visited (2) 400 Robots Destroyed (3) 15 Value Destroyed (84) 84 Prototype IDs (0) 0 Alien Tech Used (0) 0 Bonus (0) 0 TOTAL SCORE: 499 Bonus ------- None Cogmind --------- Core Integrity 0/250 Matter 270/300 Energy 50/100 System Corruption 0% Temperature Cool (2) Movement Walking (120) Location -10/Mines Parts ------- > --- POWER (1) -------- (None) > --- PROPULSION (2) --- Aluminum Leg Aluminum Leg > --- UTILITY (2) ------ Heat Sink Signal Interpreter > --- WEAPON (2) ------- (None) > --- INVENTORY (5) ---- Aluminum Leg Peak State ------------ > --- POWER ------------ Light Ion Engine > --- PROPULSION ------- Aluminum Leg Aluminum Leg > --- UTILITY ---------- Visual Processing Unit Signal Interpreter > --- WEAPON ----------- Assault Rifle Light Assault Rifle > --- INVENTORY -------- Aluminum Leg Aluminum Leg Heat Sink [Rating: 8] Favorites ----------- Power Light Ion Engine Engine Light Ion Engine Propulsion Aluminum Leg Leg Aluminum Leg Utility Signal Interpreter Device Heat Sink Processor Signal Interpreter Weapon Light Assault Rifle Ballistic Gun Light Assault Rifle Build | -11 -10 -10 ------- Run | Yrd Mat Min Slots Evolved . | . . . Power . | . . . Propulsion . | . . . Utility . | . . . Weapon . | . . . Parts Attached 13 | 6 3 4 Power 3 | 2 . 1 Engine 3 | 2 . 1 Core . | . . . Reactor . | . . . Propulsion 4 | 2 . 2 Treads . | . . . Leg 4 | 2 . 2 Wheel . | . . . Hover . | . . . Flight . | . . . Utility 4 | . 3 1 Device 2 | . 1 1 Storage . | . . . Processor 2 | . 2 . Hackware . | . . . Protection . | . . . Artifact . | . . . Weapon 2 | 2 . . Energy Gun . | . . . Energy Cannon . | . . . Ballistic Gun 2 | 2 . . Ballistic Cannon . | . . . Launcher . | . . . Special Weapon . | . . . Impact Weapon . | . . . Slashing Weapon . | . . . Piercing Weapon . | . . . Special Melee Weapon . | . . . Unidentified Prototypes . | . . . Parts Lost 7 | . . 7 Power 2 | . . 2 Propulsion 2 | . . 2 Utility 1 | . . 1 Weapon 2 | . . 2 Highest Loss Streak 7 | . . 7 To Critical Strikes . | . . . Average Slot Usage (%) 91 | . 92 89 Engine 13 | . 14 12 Leg 28 | . 28 28 Device 5 | . 7 . Processor 17 | . 13 26 Ballistic Gun 26 | . 28 22 Naked Turns . | . . . Heaviest Build 7 | 6 7 6 Greatest Support 20 | 20 20 20 Greatest Overweight (x) . | . . . Average Overweight (x) . | . . . Largest Inventory Capacity 5 | 5 5 5 Average Capacity 5 | 5 5 5 Most Carried 5 | 4 5 5 Average Carried 3 | . 4 4 Final Capacity 5 | 5 5 5 Final Carried 5 | 4 5 1 Class Distribution -------------------- 100% | Mutant Dominant Class ---------------- Mutant | -10/Materials Mutant | -10/Mines Resources | -11 -10 -10 ----------- Run | Yrd Mat Min Matter Collected 322 | 272 50 . Remotely . | . . . Salvage Created 109 | 42 67 . Parts 8 | 3 5 . Haulers Intercepted . | . . . Recyclers Shooed . | . . . Parts Field Recycled . | . . . Retrieved Matter . | . . . Parts Self-Destructed . | . . . Prevented . | . . . Kills | -11 -10 -10 ------- Run | Yrd Mat Min Combat Hostiles Destroyed 2 | 1 1 . Guns 2 | 1 1 . Classes Destroyed 2 | 1 1 . Watcher 1 | . 1 . Grunt 2 | 1 1 . Best Kill Streak 1 | 1 1 . Combat Bots Only 1 | 1 1 . Max Kills in Single Turn 1 | 1 1 . Gunslinging . | . . . Exploded . | . . . Melee . | . . . Uniques/NPCs Destroyed . | . . . Combat | -11 -10 -10 -------- Run | Yrd Mat Min Hostile Shots Fired 26 | 5 4 17 Missed 2 | 1 1 . Damage Taken 796 | 44 35 717 Core 257 | 32 11 214 Absorbed by Shields . | . . . Core Remaining (%) 87 | 87 . . Volleys Fired 11 | 3 5 3 Largest 2 | 2 2 2 Hottest 40 | 40 40 40 Shots Fired 21 | 6 10 5 Gun 21 | 6 10 5 Cannon . | . . . Launcher . | . . . Special . | . . . Kinetic 21 | 6 10 5 Thermal . | . . . Explosive . | . . . Electromagnetic . | . . . Robot Hit Streak 4 | 2 4 1 Robot Miss Streak 3 | 1 2 3 Penetration Max . | . . . Secondary Targets . | . . . Shots Hit Robots 10 | 4 5 1 Core Hits 5 | 2 3 . Critical Kills . | . . . Critical Parts Destroyed . | . . . Critical Strikes . | . . . Melee Attacks . | . . . Impact . | . . . Slashing . | . . . Piercing . | . . . Sneak Attacks . | . . . Combat Hostiles . | . . . Follow-up Attacks . | . . . Damage Inflicted 109 | 46 53 10 Guns 107 | 46 53 8 Cannons . | . . . Explosions . | . . . Melee . | . . . Ramming 2 | . . 2 Kinetic 107 | 46 53 8 Thermal . | . . . Explosive . | . . . Electromagnetic . | . . . Impact . | . . . Slashing . | . . . Piercing . | . . . Highest Corruption . | . . . Average Corruption . | . . . Corruption Purged . | . . . Corruption Blocked . | . . . Overload Shots . | . . . Overflow Damage . | . . . Projectiles . | . . . Explosions . | . . . Melee . | . . . Knockbacks . | . . . Impact . | . . . Kinetic . | . . . Secondary . | . . . Self-Inflicted Damage . | . . . Shots . | . . . Rammed . | . . . Targets Rammed 1 | . . 1 Kicked 1 | . . 1 Crushed . | . . . Highest Temperature 12 | 6 12 . Average Temperature 6 | 6 7 . Received Heat Transfer 42 | 24 18 . Siege Activations . | . . . Robots Corrupted . | . . . Combat Hostiles . | . . . Parts Fried . | . . . Impact Corruptions . | . . . Robots Melted . | . . . Combat Hostiles . | . . . Parts Melted . | . . . Heat Transferred . | . . . Parts Sabotaged . | . . . Parts Stolen . | . . . Parts Stripped . | . . . Power Chain Reactions . | . . . Alert | -11 -10 -10 ------- Run | Yrd Mat Min Peak Influence 40 | 20 40 15 Initial 15 | . 13 15 Average 13 | 3 19 12 Maximum Alert Level . | . . . Low Security (%) 100 | 100 100 100 Level 1 . | . . . Level 2 . | . . . Level 3 . | . . . Level 4 . | . . . Level 5 . | . . . High Security . | . . . Max Security . | . . . Squads Dispatched . | . . . Investigation . | . . . Extermination . | . . . Reinforcement . | . . . Assault . | . . . Garrison . | . . . Intercept . | . . . Searches Triggered . | . . . Construction Impeded . | . . . Haulers Reinforced . | . . . Active Scanning Responses . | . . . Cargo Convoy Interrupts . | . . . Stealth | -11 -10 -10 --------- Run | Yrd Mat Min Distress Signals . | . . . Communications Jammed . | . . . Distress Signals . | . . . Times Spotted 5 | 1 2 2 Peak Tracking Total 2 | 1 1 2 Tactical Retreats . | . . . Traps | -11 -10 -10 ------- Run | Yrd Mat Min Traps Triggered . | . . . Indirectly . | . . . Trap Hack Attempts . | . . . Triggered . | . . . Disarmed . | . . . Reprogrammed . | . . . Reused . | . . . Traps Extracted . | . . . Installed . | . . . Triggered . | . . . Machines | -11 -10 -10 ---------- Run | Yrd Mat Min Machines Disabled . | . . . Max in Single Turn . | . . . Machines Repaired . | . . . Machines Dismantled . | . . . Machines Sabotaged . | . . . Overloaded Fab Kills . | . . . Hacking | -11 -10 -10 --------- Run | Yrd Mat Min Machines Accessed . | . . . Terminals . | . . . Fabricators . | . . . Repair Stations . | . . . Recycling Units . | . . . Scanalyzers . | . . . Garrison Access . | . . . Total Hacks . | . . . Successful . | . . . Failed . | . . . Catastrophic . | . . . Database Lockouts . | . . . Manual . | . . . Terminals . | . . . Fabricators . | . . . Repair Stations . | . . . Recycling Units . | . . . Scanalyzers . | . . . Garrison Access . | . . . Terminal Hacks . | . . . Fabricator Hacks . | . . . Repair Station Hacks . | . . . Recycling Unit Hacks . | . . . Scanalyzer . | . . . Garrison Access Hacks . | . . . Unauthorized Hacks . | . . . Terminals . | . . . Fabricators . | . . . Repair Stations . | . . . Recycling Units . | . . . Scanalyzers . | . . . Garrison Access . | . . . Data Cores Recovered . | . . . Used . | . . . Hacking Detections . | . . . Full Trace Events . | . . . Feedback Events . | . . . Feedback Blocked . | . . . Robot Schematics Acquired . | . . . Robots Built . | . . . Authchips . | . . . Time . | . . . Total Robot Build Rating . | . . . Part Schematics Acquired . | . . . Parts Built . | . . . Authchips . | . . . Time . | . . . Total Part Build Rating . | . . . Parts Repaired . | . . . Time . | . . . Parts Recycled . | . . . Recycled Matter . | . . . Retrieved Matter . | . . . Retrieved Components . | . . . Parts Scanalyzed . | . . . Part Schematics Acquired . | . . . Parts Damaged . | . . . Bothacking | -11 -10 -10 ------------ Run | Yrd Mat Min Used RIF Installer . | . . . Robots Hacked . | . . . Non-combat . | . . . Combat . | . . . Robot Hacks Applied . | . . . Relay Couplers Released . | . . . Fabnet Peak Effective % . | . . . Robots Rewired . | . . . Allies Hacked . | . . . Hacks Repelled . | . . . Allies | -11 -10 -10 -------- Run | Yrd Mat Min Total Allies 1 | . . 1 Largest Group 1 | . . 1 Highest-Rated Group 31 | . . 31 Highest-Rated Ally 31 | . . 31 Total Orders . | . . . Ally Attacks 2 | . . 2 Total Damage 42 | . . 42 Kills . | . . . Allies Corrupted . | . . . Allies Melted . | . . . Intel | -11 -10 -10 ------- Run | Yrd Mat Min Robot Analysis Total . | . . . Derelict Logs Recovered . | . . . Drone Launches . | . . . Drone Recoveries . | . . . Exploration | -11 -10 -10 ------------- Run | Yrd Mat Min Turns Passed 320 | 97 157 66 Spaces Moved 222 | 74 106 42 Core 24 | 23 . 1 Treads . | . . . Legs 198 | 51 106 41 Wheels . | . . . Hover . | . . . Flight . | . . . Fastest Speed 50 | 50 120 50 Average Speed 112 | 98 120 118 Slowest Speed 120 | 120 120 120 Overloaded Moves . | . . . Propulsion Burnouts . | . . . Robots Hopped . | . . . Cave-ins Triggered . | . . . Exploration Rate (%) 13 | 5 20 15 Regions Visited 2 Branch Regions 1 Pre-discovered Areas . | . . . Known Exits Taken 1 | . 1 . Unknown Exits Taken 1 | 1 . . Scrap Searched . | . . . Spaces Dug . | . . . Terrain Destroyed . | . . . Melee . | . . . Projectile . | . . . AOE . | . . . Terrain Rammed . | . . . Walls Destroyed . | . . . Machines Disabled . | . . . Actions | -11 -10 -10 --------- Run | Yrd Mat Min Total 273 | 92 127 54 Wait 13 | 2 7 4 Move 220 | 73 105 42 Hop . | . . . Pick Up 12 | 7 5 . Fast Attach 2 | 2 . . Attach 10 | 4 2 4 Detach 1 | 1 . . Swap 1 | . 1 . Drop 2 | . 2 . Fire 11 | 3 5 3 Melee . | . . . Ram . | . . . Kick 1 | . . 1 Crush . | . . . Escape Stasis . | . . . Rewire . | . . . Trap . | . . . Miscellaneous . | . . . Route ------- -11/Scrapyard -10/Materials -10/Mines History --------- Turn | Location | Event 2 | -11/Scrapyard | Met Revision 17 66 | -11/Scrapyard | Discovered new exit (range 8) 98 | -11/Scrapyard | Entered Materials 216 | -10/Materials | Discovered new exit (range 15) 237 | -10/Materials | Met 8R-AWN 253 | -10/Materials | Identified exit to Mines 255 | -10/Materials | Entered Mines 257 | -10/Mines | Followed 8R-AWN into the Mines 268 | -10/Mines | Received a Mining Laser from a helpful Derelict 277 | -10/Mines | Received a Rocket Launcher from a helpful Derelict 281 | -10/Mines | Assembled infested the area 286 | -10/Mines | Assisted by a Guerilla fighting off Assembled 296 | -10/Mines | Met a Derelict bent on vengeance 312 | -10/Mines | Core integrity fell below 50% 318 | -10/Mines | Core integrity fell below 20% 321 | -10/Mines | Destroyed by D-53 Grenadier with Mini Grenade Launcher Last Messages --------------- 00302_ K-01 Serf collects debris. 00309_ Assault Rifle destroyed. 00309_ DF-KIG(g) destroyed. You may prefer to play using a different font style. Try some of the others via the option menu's second option. 00312_ K-01 Serf collects debris. 00313_ Lgt. Ion Engine destroyed. 00314_ U-05 Engineer lays Concrete. 00316_ K-01 Serf collects debris. 00316_ U-05 Engineer lays Concrete. 00317_ Aluminum Leg destroyed. 00317_ Lgt. Ion Engine destroyed. 00317_ Lgt. Assault Rifle destroyed. 00317_ Aluminum Leg destroyed. 00317_ Visual Processing Unit destroyed. 00317_ U-05 Engineer lays Concrete. 00318_ The unstable cave ceiling collapses. 00318_ U-05 Engineer lays Concrete. 00320_ K-01 Serf collects debris. 00320_ U-05 Engineer lays Concrete. Map ----- +----------------------------------------------------+ | | | | | | | ?????????????????????????????????????????????????? | | ?????????????????????????????????????????????????? | | ?????????????????????????????????????????????????? | | ?????????????????????????????????????????????????? | | ??????????????????????#######????????????????????? | | ??????????????????????# #????????????????????? | | ??????????????????????# ##???????????????????? | | ??????????????????????# T#???????????????????? | | ??????????????????????# ##???????????????????? | | ??????????????????????# #????????????????????? | | ??????????????????????# #????????????????????? | | ??????????????????????# % #??????? #???????????? | | ??????????????????????### ###### #???????????? | | ???????????????????????# #????????????? | | ???????????????????????# #?????????????? | | ???????????????????????# ###| ##?????????????? | | ???????????????????????# #??? ##??????????????? | | ??????????????????????## #???? ##???????????????? | | ?????????????????????## ####??#????????????????? | | ????????????????????## ##??????????????????? | | ???????????????????## #??????????????????? | | ????????? ####??# #??????????????????? | | ???????? # @ #??????????????????? | | ???????? #??????????????????? | | ???????? k #??????????????????? | | ????????# # #??????????????????? | | ????????? ??# ##?????????????????? | | ?????????# ## ????# ##????????????????? | | ????????????????????# #????????????????? | | ????????????????????# d #???????????? | | ????????????????????# d #??????????? | | ??????????????????? u ## ???????? | | ?????????????????" ##?# ### ! ????????? | | ????????????????#%#### #???###??? ????????? | | ????????????????#????## ??????????## ????????? | | ??????????????????????## ?????????????????????? | | ???????????????????????### #????????????????????? | | ??????????????????????????###????????????????????? | | ?????????????????????????????????????????????????? | | ?????????????????????????????????????????????????? | | ?????????????????????????????????????????????????? | | ?????????????????????????????????????????????????? | | ?????????????????????????????????????????????????? | | ?????????????????????????????????????????????????? | | ?????????????????????????????????????????????????? | | ?????????????????????????????????????????????????? | | ?????????????????????????????????????????????????? | +----------------------------------------------------+ Best States ------------- Heat Dissipation 35 Energy Generation 10 Energy Capacity 125 Matter Stores 300 Matter Capacity 300 Sight Range 18 Terrain Scan Density 10 Evasion (%) 55 Item Schematics ----------------- None Robot Schematics ------------------ None Fabricated ------------ Nothing Alien Tech Used ----------------- None Achievements -------------- None Challenges ------------ None Game ------ Seed LargeSwordLaser Manual? 0 Play Time 00:37:04 Cumulative 0.5 hours Start 2024.03.23 @ 00:01:57 End 2024.05.12 @ 14:17:08 Sessions 5 Manual Loads 0 Difficulty Rogue Special Mode None Game No. 1 Rogue 1 Adventurer 0 Explorer 0 Win Type - Total 0 Types 0/0/0/0/0/0/0/0/0 Lore% 0 Gallery% 0 Achievement% 30 Wizard Run 0 Options --------- Layout 0 ASCII 1 Keyboard 1 Movement Numpad Keybinds 0 Fullscreen 1 Font 18/SmallcapsGlow Map View 76x50 Zoom Use 1% Tactical HUD 1 Map Filters NONE Filters NONE Steam 1 RUN: fcee7b43-6eca-4435-b868-cfe2eeb777db